bitfinex-derivatives/quotes_SOLF0:USTF0_20250626
["timestamp","ask_amount","ask_price","bid_price","bid_amount"]
[1750975575767,7.1225,140.35,140.34,39.14]
[1750975575966,5.46628973,140.38,140.29,645.62628973]
[1750975576169,5.46628973,140.36,140.3,39.14]
[1750975576464,7.1246,140.31,140.3,39.14]
[1750975582771,5.46628973,140.32,140.27,7.287]
[1750975582977,5.46628973,140.32,140.26,39.76]
[1750975583163,5.46628973,140.32,140.25,39.76]
[1750975583666,7.1272,140.26,140.23,2.5097]
[1750975583870,5.46628973,140.3,140.23,42.2697]
[1750975584274,7.1281,140.24,140.23,42.2697]
[1750975585571,39.76,140.32,140.23,42.2697]
[1750975585572,45.22628973,140.32,140.23,42.2697]
[1750975585765,45.22628973,140.32,140.24,2.5018]
[1750975586273,7.1276,140.25,140.24,2.5018]
[1750975587080,7.1273,140.26,140.24,2.5018]
[1750975587773,7.1276,140.25,140.24,2.5018]
[1750975588373,7.1276,140.25,140.21,785.54]
[1750975588374,5.46628973,140.28,140.21,640.7]
[1750975588576,5.46628973,140.24,140.18,2.5327]
[1750975588776,7.1307,140.19,140.18,42.3127]
[1750975589877,7.1303,140.2,140.18,42.3127]
[1750975590078,5.46628973,140.26,140.18,42.3127]
[1750975590378,7.1307,140.19,140.18,42.3127]
[1750975590572,5.46628973,140.26,140.18,42.3127]
[1750975592183,7.1307,140.19,140.18,42.3127]
[1750975593075,7.1307,140.19,140.18,39.78]
[1750975593275,5.46628973,140.22,140.15,39.8]
[1750975593680,7.1322,140.16,140.15,39.8]
[1750975594185,7.1317,140.17,140.15,39.8]
[1750975594383,45.26628973,140.24,140.15,39.8]
[1750975595579,7.1314,140.18,140.15,39.8]
[1750975595779,45.26628973,140.24,140.15,39.8]
[1750975597081,7.1322,140.16,140.15,39.8]
[1750975597289,5.46628973,140.16,140.05,5.46628973]
[1750975597484,39.8,140.17,140.07,5.46628973]
[1750975597782,39.8,140.17,140.11,5.46628973]
[1750975597983,39.8,140.17,140.1,39.8]
[1750975598579,7.3572,140.21,140.11,5.46628973]
[1750975598887,45.26628973,140.24,140.15,5.46628973]
[1750975599086,39.8,140.24,140.17,5.46628973]
[1750975599584,7.1283,140.24,140.18,2.3533]
[1750975600083,7.1283,140.24,140.19,7.1304]
[1750975600285,7.1287,140.23,140.19,7.1304]
[1750975600788,12.80098973,140.26,140.2,7.1302]
[1750975601183,39.8,140.27,140.19,39.8]
[1750975601381,7.1278,140.25,140.19,39.8]
[1750975601687,39.8,140.27,140.19,39.8]
[1750975601886,7.1281,140.25,140.21,7.1296]
[1750975605893,7.1282,140.24,140.21,7.1296]
[1750975606098,39.8,140.27,140.21,7.1296]
[1750975606293,45.26628973,140.27,140.21,7.1296]
[1750975606500,45.26628973,140.27,140.19,39.8]
[1750975607194,39.8,140.27,140.2,5.46628973]
[1750975607501,7.1274,140.26,140.23,7.1286]
[1750975607695,4.9612,140.3,140.24,39.8]
[1750975608198,7.1258,140.29,140.25,7.1273]
[1750975609300,7.1262,140.28,140.24,46.9281]
[1750975610598,7.1262,140.28,140.25,7.1276]
[1750975610992,7.1262,140.28,140.24,39.8]
[1750975610993,7.1262,140.28,140.24,46.9279]
[1750975611193,7.1267,140.27,140.24,46.9279]
[1750975612001,7.1263,140.28,140.25,7.1276]
[1750975612401,4.9612,140.3,140.24,39.8]
[1750975612597,42.2344,140.31,140.24,39.8]
[1750975612801,39.8,140.31,140.24,45.26628973]
[1750975613002,217.12211348,140.32,140.26,7.1267]
[1750975614398,7.1259,140.29,140.26,7.1267]
[1750975616206,7.1262,140.28,140.25,7.1274]
[1750975616406,7.44263255,140.31,140.24,45.26628973]
[1750975616603,5.46628973,140.28,140.21,39.38]
[1750975616803,7.44263255,140.27,140.21,39.38]
[1750975617001,7.44263255,140.26,140.21,39.38]
[1750975617309,5.46628973,140.28,140.21,39.38]
[1750975617508,7.44691911,140.27,140.21,39.38]
[1750975617701,7.44691911,140.26,140.21,39.38]
[1750975617900,5.46628973,140.28,140.21,39.38]
[1750975618101,7.44692131,140.27,140.21,39.38]
[1750975618303,7.44692131,140.26,140.21,39.38]
[1750975618505,5.46628973,140.28,140.21,39.38]
[1750975618704,7.1279,140.25,140.22,7.129]
[1750975618904,5.46628973,140.28,140.21,39.38]
[1750975619102,5.46628973,140.26,140.21,39.38]
[1750975619309,5.46628973,140.24,140.17,41.7154]
[1750975619505,2.52014632,140.23,140.17,41.7154]
[1750975619708,4.91049214,140.25,140.17,41.7154]
[1750975619906,7.1294,140.22,140.17,41.7154]
[1750975620107,44.84628973,140.26,140.17,41.7154]
[1750975620310,7.1289,140.23,140.2,7.1301]
[1750975620807,4.91319591,140.24,140.17,41.7154]
[1750975620808,5.46628973,140.28,140.19,5.46628973]
[1750975621006,7.42967788,140.27,140.21,44.84628973]
[1750975621207,2.51647584,140.26,140.22,39.38]
[1750975621406,7.1274,140.26,140.23,7.1282]
[1750975621911,9.64397233,140.25,140.22,39.38]
[1750975622114,7.128,140.25,140.22,39.38]
[1750975622610,7.1282,140.24,140.22,39.38]
[1750975622916,7.43219234,140.28,140.22,39.38]
[1750975623113,7.1279,140.25,140.22,46.509]
[1750975623317,5.46628973,140.28,140.22,39.38]
[1750975623617,5.46628973,140.28,140.19,44.84628973]
[1750975623618,7.1284,140.24,140.19,44.84628973]
[1750975624003,7.1284,140.24,140.21,7.1294]
[1750975624207,2.51516555,140.26,140.19,44.84628973]
[1750975624408,52.18428973,140.3,140.19,44.84628973]
[1750975624605,2.51455884,140.29,140.23,7.1283]
[1750975624801,7.1276,140.25,140.23,7.1283]
[1750975625410,2.51249438,140.29,140.21,5.46628973]
[1750975625714,222.58840321,140.32,140.23,44.84628973]
[1750975626013,7.126,140.29,140.26,7.1271]
[1750975626413,7.1261,140.28,140.25,7.1274]
[1750975627019,7.1261,140.28,140.26,7.1271]
[1750975628215,7.1258,140.29,140.26,7.1271]
[1750975629117,7.1258,140.29,140.27,7.1265]
[1750975629614,217.12211348,140.32,140.25,5.46628973]
[1750975629807,2.51939341,140.31,140.25,5.46628973]
[1750975630011,217.12211348,140.32,140.25,5.46628973]
[1750975630012,7.1255,140.3,140.25,5.46628973]
[1750975630218,7.1255,140.3,140.27,7.1263]
[1750975630613,7.1248,140.31,140.25,5.46628973]
[1750975630814,217.12211348,140.32,140.25,5.46628973]
[1750975631114,2.5197894,140.31,140.25,5.46628973]
[1750975631412,222.58840321,140.32,140.26,7.1269]
[1750975631615,222.58840321,140.32,140.24,39.38]
[1750975631816,7.1259,140.29,140.26,7.1269]
[1750975632012,2.51944704,140.31,140.23,7.86018973]
[1750975632218,5.46628973,140.28,140.21,39.38]
[1750975632514,7.1274,140.26,140.21,39.38]
[1750975633312,7.1274,140.26,140.23,7.1283]
[1750975633816,7.1276,140.25,140.23,7.1283]
[1750975634023,7.1276,140.25,140.22,7.1289]
[1750975634219,5.46628973,140.28,140.21,39.38]
[1750975634418,39.38,140.29,140.21,44.84628973]
[1750975635128,39.38,140.29,140.23,5.46628973]
[1750975635415,39.38,140.29,140.22,2.4869]
[1750975635618,39.38,140.29,140.23,7.1283]
[1750975636007,7.1286,140.23,140.21,46.5094]
[1750975636614,7.1291,140.22,140.21,39.38]
[1750975636916,5.46628973,140.24,140.18,39.38]
[1750975637115,7.1289,140.23,140.2,7.13]
[1750975637511,7.1289,140.23,140.18,39.38]
[1750975637512,39.38,140.25,140.18,39.38]
[1750975638120,5.46628973,140.23,140.16,2.4869]
[1750975638418,2.52331476,140.22,140.16,2.4869]
[1750975638719,7.1314,140.18,140.15,46.5127]
[1750975639021,2.52335459,140.22,140.15,39.38]
[1750975639214,5.46628973,140.23,140.15,39.38]
[1750975639415,5.46628973,140.23,140.16,7.1319]
[1750975639619,2.50824132,140.22,140.15,39.38]
[1750975639821,7.1314,140.18,140.15,46.5124]
[1750975640219,2.50790847,140.21,140.15,39.38]
[1750975640422,5.46628973,140.21,140.15,39.38]
[1750975640724,5.46628973,140.23,140.15,39.38]
[1750975640918,2.50763819,140.22,140.15,39.38]
[1750975641120,2.50763819,140.21,140.15,39.38]
[1750975641320,2.50775548,140.22,140.15,39.38]
[1750975641624,5.46628973,140.23,140.16,7.1319]
[1750975641824,2.5074885,140.22,140.15,39.38]
[1750975642026,7.1291,140.22,140.17,5.46628973]
[1750975642215,39.38,140.25,140.17,5.46628973]
[1750975642413,39.38,140.25,140.19,5.46628973]
[1750975642613,46.3164,140.28,140.19,44.40628973]
[1750975642828,7.1279,140.25,140.21,7.1294]
[1750975643327,38.94,140.28,140.21,7.1294]
[1750975643518,7.1283,140.24,140.21,7.1294]
[1750975643924,38.94,140.28,140.22,7.1291]
[1750975644125,7.1275,140.26,140.22,7.1291]
[1750975644322,38.94,140.28,140.21,5.46628973]
[1750975644534,2.51369048,140.27,140.25,5.46628973]
[1750975644728,217.12211348,140.32,140.25,44.40628973]
[1750975644919,2.51805646,140.31,140.26,7.1269]
[1750975645119,2.51805646,140.3,140.26,7.1269]
[1750975645315,217.12211348,140.32,140.26,7.1269]
[1750975645531,2.51894314,140.31,140.27,7.1265]
[1750975645729,2.51894314,140.3,140.27,7.1265]
[1750975645927,217.12211348,140.32,140.25,44.40628973]
[1750975646121,2.51887933,140.31,140.25,44.40628973]
[1750975646318,7.1259,140.29,140.25,44.40628973]
[1750975646523,7.1259,140.29,140.26,7.1269]
[1750975647231,7.1253,140.3,140.27,7.1266]
[1750975647530,217.12211348,140.32,140.25,44.40628973]
[1750975647723,2.51876368,140.31,140.25,44.40628973]
[1750975647922,217.12211348,140.32,140.27,5.46628973]
[1750975648128,7.2513,140.36,140.29,5.46628973]
[1750975648430,2.5184846,140.35,140.3,7.1248]
[1750975648733,2.5184846,140.34,140.29,44.40628973]
[1750975648935,7.1226,140.35,140.29,44.40628973]
[1750975649130,2.5008,140.36,140.29,44.40628973]
[1750975649325,2.51865561,140.35,140.29,44.40628973]
[1750975649524,7.1233,140.34,140.31,7.1242]
[1750975649830,2.5008,140.36,140.31,7.1242]
[1750975650130,9.64002716,140.35,140.32,7.1239]
[1750975650319,38.94,140.37,140.29,44.40628973]
[1750975650631,7.123,140.35,140.31,7.1244]
[1750975650931,7.123,140.35,140.29,44.40628973]
[1750975651233,38.94,140.37,140.32,7.1236]
[1750975651525,2.51528022,140.36,140.32,7.1236]
[1750975651731,38.94,140.37,140.33,7.1234]
[1750975651926,2.53232791,140.36,140.31,5.46628973]
[1750975652127,4.93714083,140.38,140.31,5.46628973]
[1750975652323,9.65371421,140.37,140.34,7.123]
[1750975652526,7.1216,140.37,140.34,7.123]
[1750975652825,7.1216,140.37,140.33,7.1233]
[1750975653224,7.1216,140.37,140.31,5.46628973]
[1750975653422,7.1216,140.37,140.33,7.1232]
[1750975654032,44.38628973,140.39,140.3,5.46628973]
[1750975654236,2.53018009,140.38,140.3,5.46628973]
[1750975654435,44.38628973,140.39,140.3,5.46628973]
[1750975654633,2.52909099,140.38,140.3,5.46628973]
[1750975654831,44.38628973,140.39,140.3,5.46628973]
[1750975655032,7.1222,140.36,140.32,7.124]
[1750975655228,7.1222,140.36,140.3,5.46628973]
[1750975656327,7.1226,140.35,140.32,7.1237]
[1750975656729,7.1226,140.35,140.3,5.46628973]
[1750975656730,2.54032662,140.38,140.3,5.46628973]
[1750975657238,38.92,140.39,140.32,5.46628973]
[1750975657430,41.45759099,140.39,140.32,5.46628973]
[1750975657832,38.92,140.39,140.32,5.46628973]
[1750975658429,38.92,140.39,140.33,38.92]
[1750975658829,2.3594,140.4,140.34,5.46628973]
[1750975659038,2.53615282,140.41,140.34,5.46628973]
[1750975659237,43.76515282,140.42,140.34,5.46628973]
[1750975659432,41.229,140.42,140.34,5.46628973]
[1750975660540,7.1202,140.4,140.36,7.1217]
[1750975661236,41.229,140.42,140.36,7.1217]
[1750975661237,7.1206,140.39,140.36,7.1217]
[1750975665833,7.1211,140.38,140.36,7.1217]
[1750975666236,41.229,140.42,140.36,7.1217]
[1750975666438,7.1208,140.39,140.36,7.1217]
[1750975667940,38.92,140.42,140.36,5.46628973]
[1750975668134,38.92,140.42,140.35,4.8959]
[1750975668336,3.65189252,140.41,140.34,2.3624]
[1750975668640,38.92,140.42,140.34,2.3624]
[1750975668641,42.57189252,140.42,140.35,3.65189252]
[1750975669141,7.1203,140.4,140.37,7.1213]
[1750975669344,42.57189252,140.42,140.35,3.65189252]
[1750975669734,7.1206,140.39,140.36,7.1218]
[1750975670747,7.1211,140.38,140.35,10.77419252]
[1750975671038,3.65189252,140.4,140.34,2.3624]
[1750975671342,3.65189252,140.4,140.33,38.92]
[1750975671738,3.65189252,140.38,140.33,38.92]
[1750975672536,7.1231,140.34,140.33,38.92]
[1750975672933,3.65189252,140.38,140.33,38.92]
[1750975673140,7.123,140.35,140.33,38.92]
[1750975674143,7.1223,140.36,140.33,46.0434]
[1750975674347,3.65189252,140.38,140.33,38.92]
[1750975674840,7.1223,140.36,140.33,46.0434]
[1750975675238,7.1227,140.35,140.33,38.92]
[1750975676343,3.65189252,140.36,140.29,8.54779252]
[1750975676641,3.65189252,140.36,140.29,38.86]
[1750975676847,7.1249,140.31,140.29,38.86]
[1750975677049,3.65189252,140.34,140.29,38.86]
[1750975677647,7.1244,140.32,140.29,45.9853]
[1750975677943,3.65189252,140.34,140.29,45.9853]
[1750975678342,7.1248,140.31,140.29,38.86]
[1750975679152,7.1243,140.32,140.29,38.86]
[1750975679545,3.65189252,140.34,140.29,38.86]
[1750975679947,3.65189252,140.34,140.29,45.9853]
[1750975680747,5.0036,140.35,140.29,38.86]
[1750975681154,7.1239,140.33,140.3,7.1251]
[1750975682041,7.1239,140.33,140.29,38.86]
[1750975682042,5.0036,140.35,140.29,38.86]
[1750975682446,5.0036,140.35,140.3,7.125]
[1750975683457,6.14849252,140.37,140.31,3.65189252]
[1750975683749,38.86,140.38,140.31,3.65189252]
[1750975684558,38.86,140.38,140.33,7.1235]
[1750975684857,38.86,140.38,140.31,3.65189252]
[1750975685057,7.1228,140.35,140.32,7.1236]
[1750975687563,2.52993915,140.36,140.3,2.5187]
[1750975687763,3.65189252,140.37,140.3,2.5187]
[1750975688059,3.65189252,140.37,140.31,3.65189252]
[1750975688663,7.1223,140.36,140.33,7.1233]
[1750975688857,42.51189252,140.38,140.33,7.1233]
[1750975689251,2.53442627,140.37,140.33,7.1233]
[1750975689456,2.53416182,140.36,140.31,3.65189252]
[1750975689665,2.53423135,140.35,140.3,2.5187]
[1750975689962,7.1234,140.34,140.31,7.1243]
[1750975690364,7.1227,140.35,140.32,7.1239]
[1750975691063,7.1231,140.34,140.32,7.1239]
[1750975691456,7.1231,140.34,140.3,2.5187]
[1750975691457,3.65189252,140.36,140.27,8.62309985]
[1750975691662,38.86,140.38,140.27,38.86]
[1750975691663,7.1248,140.31,140.27,38.86]
[1750975691964,3.65189252,140.34,140.3,7.1248]
[1750975692267,3.65189252,140.34,140.28,3.65189252]
[1750975692458,7.5406802,140.33,140.27,38.86]
[1750975692657,11.21383458,140.32,140.27,38.86]
[1750975692865,2.53989432,140.31,140.27,38.86]
[1750975693064,3.65189252,140.32,140.27,38.86]
[1750975693370,5.02296655,140.33,140.28,7.1258]
[1750975693566,2.54026243,140.32,140.28,7.1258]
[1750975693768,7.1248,140.31,140.28,7.1258]
[1750975694568,7.124,140.33,140.27,38.86]
[1750975694763,7.124,140.33,140.28,3.65189252]
[1750975695067,7.124,140.33,140.3,7.1248]
[1750975695866,7.124,140.33,140.31,7.1245]
[1750975696668,7.124,140.33,140.3,7.1248]
[1750975696869,7.124,140.33,140.28,3.65189252]
[1750975697076,7.1233,140.34,140.28,3.65189252]
[1750975697265,7.1233,140.34,140.3,3.65189252]
[1750975698170,7.1233,140.34,140.31,7.1241]
[1750975698363,7.1233,140.34,140.3,3.65189252]
[1750975698761,7.1236,140.33,140.31,7.1245]
[1750975699269,7.1233,140.34,140.31,7.1245]
[1750975699470,3.65189252,140.36,140.32,7.1238]
[1750975699867,7.1229,140.35,140.32,7.1238]
[1750975700169,7.1229,140.35,140.33,7.1235]
[1750975700561,7.1231,140.34,140.31,7.1242]
[1750975700763,7.1231,140.34,140.31,45.9842]
[1750975702365,7.1231,140.34,140.32,7.124]
[1750975702867,3.65189252,140.34,140.29,7.1255]
[1750975703066,3.65189252,140.32,140.27,38.82]
[1750975703474,7.1255,140.3,140.27,45.9465]
[1750975704176,7.1257,140.29,140.27,38.82]
[1750975706777,7.1253,140.3,140.27,45.9465]
[1750975706976,3.65189252,140.32,140.27,38.82]
[1750975707279,7.1251,140.31,140.28,7.126]
[1750975708975,42.47189252,140.36,140.27,42.47189252]
[1750975709183,2.52981838,140.35,140.29,3.65189252]
[1750975709476,7.1228,140.35,140.32,7.1238]
[1750975709673,3.65189252,140.36,140.29,3.65189252]
[1750975709869,7.1233,140.34,140.31,7.1243]
[1750975710479,7.1226,140.35,140.29,3.65189252]
[1750975710878,7.1226,140.35,140.29,6.08009252]
[1750975711276,3.65189252,140.36,140.29,4.8476]
[1750975711484,2.52997126,140.35,140.27,38.82]
[1750975711678,3.65189252,140.33,140.27,38.82]
[1750975711982,3.65189252,140.33,140.28,7.1258]
[1750975711983,7.1249,140.31,140.28,7.1258]
[1750975712278,3.65189252,140.33,140.27,38.82]
[1750975712476,3.65189252,140.31,140.27,38.82]
[1750975712673,7.1258,140.29,140.27,38.82]
[1750975713880,7.1261,140.28,140.27,38.82]
[1750975714180,3.65189252,140.29,140.24,834.73907323]
[1750975714479,7.1266,140.27,140.24,841.86697323]
[1750975714880,3.65189252,140.29,140.24,834.73907323]
[1750975715182,7.1266,140.28,140.25,7.1276]
[1750975715377,3.65189252,140.29,140.24,834.73907323]
[1750975715572,3.65189252,140.29,140.24,38.82]
[1750975715769,7.1274,140.26,140.24,38.82]
[1750975715977,7.1274,140.26,140.23,7.1283]
[1750975716580,3.65189252,140.29,140.23,3.65189252]
[1750975717377,7.1267,140.27,140.24,7.1279]
[1750975717682,3.65189252,140.29,140.23,3.65189252]
[1750975718077,2.5357551,140.28,140.23,3.65189252]
[1750975718285,3.65189252,140.31,140.25,3.65189252]
[1750975718484,2.53510861,140.3,140.25,42.47189252]
[1750975718685,2.53510861,140.29,140.28,7.1261]
[1750975719186,7.1249,140.31,140.28,7.1261]
[1750975719594,2.53503942,140.3,140.28,7.1261]
[1750975719793,7.1249,140.31,140.28,7.1261]
[1750975719998,2.53503834,140.3,140.28,7.1261]
[1750975720201,7.1249,140.31,140.28,7.1261]
[1750975720400,2.53513175,140.3,140.28,7.1261]
[1750975720601,7.1249,140.31,140.28,7.1261]
[1750975720902,7.1249,140.31,140.25,42.47189252]
[1750975720903,7.1243,140.32,140.29,7.1255]
[1750975721085,2.53603702,140.31,140.29,7.1255]
[1750975721289,7.1243,140.32,140.29,7.1255]
[1750975721489,2.53649104,140.31,140.29,7.1255]
[1750975721685,7.1243,140.32,140.29,7.1255]
[1750975721897,2.53674133,140.31,140.29,7.1255]
[1750975722098,7.1243,140.32,140.29,7.1255]
[1750975722299,2.53657269,140.31,140.29,7.1255]
[1750975722497,7.1243,140.32,140.29,7.1255]
[1750975724699,7.1238,140.33,140.3,7.125]
[1750975728404,38.82,140.34,140.26,8.62309985]
[1750975728405,7.1244,140.32,140.29,7.1253]
[1750975729200,7.1238,140.33,140.3,7.125]
[1750975729602,2.53838647,140.32,140.27,3.65189252]
[1750975729901,7.1244,140.32,140.29,7.1256]
[1750975730402,38.82,140.34,140.3,7.125]
[1750975730602,2.54132466,140.33,140.3,7.125]
[1750975730804,38.82,140.34,140.27,3.65189252]
[1750975731003,2.54106072,140.33,140.27,3.65189252]
[1750975731206,38.82,140.34,140.27,3.65189252]
[1750975731408,2.54128386,140.33,140.27,3.65189252]
[1750975731598,7.1241,140.32,140.29,7.1254]
[1750975732207,7.1238,140.33,140.3,7.125]
[1750975736010,7.1241,140.32,140.29,7.1254]
[1750975736210,38.82,140.34,140.27,12.27499237]
[1750975736413,2.54057412,140.33,140.27,12.27499237]
[1750975736611,7.1238,140.33,140.3,7.1248]
[1750975739312,7.1242,140.32,140.3,7.1248]
[1750975740013,7.1238,140.33,140.3,7.1248]
[1750975740207,3.65189252,140.35,140.29,38.78]
[1750975740402,3.65189252,140.33,140.27,8.62309985]
[1750975740712,7.1258,140.29,140.26,38.78]
[1750975740911,3.65189252,140.31,140.26,38.78]
[1750975741106,3.65189252,140.27,140.2,8.62309985]
[1750975741306,7.53544081,140.26,140.21,7.1293]
[1750975741610,2.53771257,140.25,140.19,38.78]
[1750975741805,3.65189252,140.26,140.19,47.40309985]
[1750975742205,3.65189252,140.26,140.2,3.65189252]
[1750975743313,10.77919252,140.26,140.22,7.1289]
[1750975743506,3.65189252,140.26,140.19,8.62309985]
[1750975743704,3.65189252,140.26,140.19,38.78]
[1750975743906,7.1279,140.25,140.22,7.1287]
[1750975744416,7.1282,140.24,140.21,7.1293]
[1750975744613,3.65189252,140.24,140.19,38.78]
[1750975745108,38.78,140.27,140.16,13.30489985]
[1750975745109,3.65189252,140.22,140.16,13.30489985]
[1750975745312,3.65189252,140.22,140.16,4.6818]
[1750975745509,38.78,140.23,140.15,679.88]
[1750975745510,3.65189252,140.2,140.15,679.88]
[1750975745703,7.131,140.19,140.16,7.1321]
[1750975746108,3.65189252,140.2,140.15,38.78]
[1750975746711,7.1315,140.18,140.15,38.78]
[1750975747105,7.1315,140.18,140.15,45.9124]
[1750975747713,7.1308,140.19,140.15,45.9124]
[1750975748416,10.78229252,140.2,140.16,7.1322]
[1750975749416,7.1308,140.19,140.16,7.1322]
[1750975749810,7.1315,140.18,140.15,45.9125]
[1750975750016,7.1315,140.18,140.15,7.1325]
[1750975750512,7.1315,140.18,140.13,2.3206]
[1750975750513,7.1315,140.18,140.14,7.1331]
[1750975750718,2.52076976,140.22,140.12,44.88249252]
[1750975750719,3.65189252,140.16,140.12,38.8]
[1750975750911,38.8,140.19,140.12,38.8]
[1750975750912,3.65189252,140.18,140.12,42.45189252]
[1750975751317,10.78339252,140.18,140.14,7.1329]
[1750975753119,45.9309,140.19,140.16,7.1322]
[1750975753411,3.65189252,140.17,140.12,38.8]
[1750975754216,7.1335,140.14,140.12,38.8]
[1750975754412,3.65189252,140.15,140.09,38.8]
[1750975755115,3.65189252,140.13,140.09,38.8]
[1750975755320,3.65189252,140.13,140.07,43.6432]
[1750975755816,10.78579252,140.13,140.09,7.1354]
[1750975756020,10.78579252,140.13,140.07,43.6432]
[1750975756216,10.78559252,140.13,140.1,7.1349]
[1750975758115,38.82,140.15,140.08,3.65189252]
[1750975758324,223.99381459,140.22,140.12,3.65189252]
[1750975758513,42.47189252,140.21,140.14,3.65189252]
[1750975758828,42.47189252,140.21,140.12,38.82]
[1750975758829,3.65189252,140.19,140.12,42.47189252]
[1750975759119,49.60169252,140.21,140.14,3.65189252]
[1750975759315,223.99381459,140.22,140.12,38.82]
[1750975759316,223.99381459,140.22,140.16,3.65189252]
[1750975759515,223.99381459,140.22,140.16,42.47189252]
[1750975759718,231.12311459,140.22,140.16,42.47189252]
[1750975760224,231.12311459,140.22,140.19,7.1304]
[1750975760418,7.1297,140.21,140.16,42.47189252]
[1750975761421,7.1293,140.22,140.18,7.1309]
[1750975761619,38.82,140.25,140.18,3.65189252]
[1750975761812,7.1289,140.23,140.2,7.1299]
[1750975762010,7.1289,140.23,140.18,3.65189252]
[1750975762414,7.1289,140.23,140.19,7.1304]
[1750975763023,7.1283,140.24,140.18,3.65189252]
[1750975763419,38.82,140.25,140.2,3.65189252]
[1750975763622,7.1279,140.25,140.22,7.1291]
[1750975764429,10.77929252,140.26,140.23,7.1286]
[1750975764629,42.43189252,140.28,140.2,42.43189252]
[1750975765024,7.1265,140.28,140.22,3.65189252]
[1750975765518,3.65189252,140.29,140.23,3.65189252]
[1750975765725,42.43189252,140.31,140.25,3.65189252]
[1750975766125,7.1254,140.3,140.27,7.1266]
[1750975766819,7.1254,140.3,140.26,7.1269]
[1750975767526,45.9048,140.31,140.25,3.65189252]
[1750975767825,7.1248,140.31,140.25,3.65189252]
[1750975768021,7.1245,140.32,140.27,3.65189252]
[1750975768219,3.65189252,140.33,140.27,3.65189252]
[1750975769126,3.65189252,140.33,140.28,7.1257]
[1750975769427,3.65189252,140.33,140.25,3.65189252]
[1750975769815,7.1249,140.31,140.27,7.1263]
[1750975770319,3.65189252,140.31,140.24,38.78]
[1750975770518,7.1259,140.29,140.25,7.1276]
[1750975770716,3.65189252,140.29,140.24,38.78]
[1750975771325,10.77789252,140.29,140.25,7.1276]
[1750975771827,7.126,140.29,140.24,38.78]
[1750975772429,7.1262,140.28,140.25,7.1274]
[1750975772629,5.48545635,140.32,140.25,7.1274]
[1750975772829,5.48545635,140.3,140.24,38.78]
[1750975773021,44.24545635,140.3,140.24,45.9081]
[1750975773223,44.24545635,140.3,140.24,38.78]
[1750975773629,44.24545635,140.3,140.24,45.908]
[1750975774132,44.24545635,140.3,140.21,12.75355635]
[1750975774133,7.1274,140.26,140.23,7.1284]
[1750975775329,7.1268,140.27,140.24,7.1278]
[1750975775529,7.1268,140.27,140.21,51.51355635]
[1750975775729,44.24545635,140.3,140.21,51.51355635]
[1750975775929,7.1272,140.26,140.23,7.1285]
[1750975777829,7.1272,140.26,140.22,7.129]
[1750975778633,5.48545635,140.28,140.21,46.0281]
[1750975779036,7.1269,140.27,140.23,7.1283]
[1750975779427,44.24545635,140.3,140.21,46.0281]
[1750975779732,7.1269,140.27,140.24,7.1278]
[1750975780330,7.1263,140.28,140.25,7.1275]
[1750975780636,2.50059618,140.33,140.26,5.48545635]
[1750975780637,38.76,140.33,140.26,5.48545635]
[1750975780829,38.76,140.33,140.28,7.1257]
[1750975781035,38.76,140.33,140.25,38.76]
[1750975781339,7.1248,140.31,140.26,5.48545635]
[1750975781635,7.1248,140.31,140.28,7.1258]
[1750975782040,38.76,140.33,140.27,7.1263]
[1750975783433,7.1254,140.3,140.27,7.1263]
[1750975784140,7.1247,140.31,140.28,7.126]
[1750975785941,7.1243,140.32,140.29,7.1253]
[1750975787131,7.1237,140.33,140.3,7.1249]
[1750975787538,44.24545635,140.36,140.28,5.48545635]
[1750975787736,44.24545635,140.36,140.31,7.1244]
[1750975788844,7.1233,140.34,140.31,7.1244]